Cogmind - Beta 13 X1 @@@ ROGUE MODE // 2023.11.08 @ 09:15:44 Player: VR-DUX Result: Destroyed by HT-C7N(R) with Subdweller Shrapnel Launcher Performance ------------- Evolutions (0) 0 Regions Visited (2) 400 Robots Destroyed (27) 135 Value Destroyed (498) 498 Prototype IDs (0) 0 Alien Tech Used (0) 0 Bonus (0) 0 TOTAL SCORE: 1033 Bonus ------- None Cogmind --------- Core Integrity 0/250 Matter 239/300 Energy 238/250 System Corruption 0% Temperature Cool (0) Movement Treading (160) Location -10/Subcaves Parts ------- > --- POWER (1) -------- Ion Engine > --- PROPULSION (2) --- Light Treads Light Treads > --- UTILITY (2) ------ Large Storage Unit Core Shielding > --- WEAPON (2) ------- Medium Laser > --- INVENTORY (15) --- Light Treads Compact Wheel Structural Scanner Sensor Array Signal Interpreter Light Armor Plating Medium Laser Battle Rifle Grenade Launcher Mining Claw Peak State ------------ > --- POWER ------------ Ion Engine > --- PROPULSION ------- Light Treads Light Treads > --- UTILITY ---------- Medium Storage Unit Light Armor Plating > --- WEAPON ----------- Medium Laser Medium Laser > --- INVENTORY -------- Ion Engine Wheel Compact Wheel Sensor Array Signal Interpreter Light Armor Plating Light Armor Plating Assault Rifle Grenade Launcher Mining Claw [Rating: 8] Favorites ----------- Power Ion Engine Engine Ion Engine Propulsion Light Treads Treads Light Treads Leg Aluminum Leg Utility Large Storage Unit Device Structural Scanner Storage Large Storage Unit Protection Light Armor Plating Weapon Medium Laser Energy Gun Medium Laser Ballistic Gun Assault Rifle Launcher Grenade Launcher Slashing Weapon Mining Claw Build | -11 -10 -10 ------- Run | Jun Mat Sub Slots Evolved . | . . . Power . | . . . Propulsion . | . . . Utility . | . . . Weapon . | . . . Parts Attached 34 | 1 13 20 Power 2 | . 1 1 Engine 2 | . 1 1 Core . | . . . Reactor . | . . . Propulsion 4 | . 3 1 Treads 4 | . 3 1 Leg . | . . . Wheel . | . . . Hover . | . . . Flight . | . . . Utility 14 | 1 5 8 Device 5 | 1 . 4 Storage 2 | . 2 . Processor . | . . . Hackware . | . . . Protection 7 | . 3 4 Artifact . | . . . Weapon 14 | . 4 10 Energy Gun 1 | . 1 . Energy Cannon . | . . . Ballistic Gun 7 | . 2 5 Ballistic Cannon . | . . . Launcher 1 | . 1 . Special Weapon . | . . . Impact Weapon . | . . . Slashing Weapon 5 | . . 5 Piercing Weapon . | . . . Special Melee Weapon . | . . . Unidentified Prototypes . | . . . Parts Lost 3 | . . 3 Power 1 | . . 1 Propulsion 1 | . . 1 Utility . | . . . Weapon 1 | . . 1 Highest Loss Streak 1 | . . 1 To Critical Strikes . | . . . Average Slot Usage (%) 99 | . 99 100 Engine 13 | . 13 14 Treads 27 | . 27 28 Device 5 | . . 10 Storage 14 | . 14 14 Protection 7 | . 13 3 Energy Gun 15 | . 17 14 Ballistic Gun 10 | . 10 10 Slashing Weapon 1 | . . 3 Naked Turns . | . . . Heaviest Build 32 | 15 32 32 Greatest Support 40 | 20 40 40 Greatest Overweight (x) . | . . . Average Overweight (x) . | . . . Largest Inventory Capacity 15 | 8 15 15 Average Capacity 14 | 8 13 15 Most Carried 13 | 6 13 12 Average Carried 10 | 6 10 10 Final Capacity 15 | 8 15 15 Final Carried 11 | 6 11 10 Class Distribution -------------------- 100% | Mutant Dominant Class ---------------- Mutant | -10/Materials Mutant | -10/Subcaves Resources | -11 -10 -10 ----------- Run | Jun Mat Sub Matter Collected 663 | 210 249 204 Remotely . | . . . Salvage Created 943 | 97 656 190 Parts 54 | 6 38 10 Haulers Intercepted 2 | . 2 . Recyclers Shooed 1 | . 1 . Parts Field Recycled . | . . . Retrieved Matter . | . . . Parts Self-Destructed 2 | . . 2 Prevented . | . . . Kills | -11 -10 -10 ------- Run | Jun Mat Sub Combat Hostiles Destroyed 16 | . 12 4 Guns 16 | . 12 4 Classes Destroyed 9 | 2 6 1 Worker 1 | . 1 . Builder 3 | . 3 . Tunneler 1 | 1 . . Hauler 2 | . 2 . Recycler 3 | 1 2 . Watcher 1 | . 1 . Swarmer 6 | . 6 . Grunt 6 | . 6 . Subdweller 4 | . . 4 Best Kill Streak 4 | 2 4 2 Combat Bots Only 4 | . 4 2 Max Kills in Single Turn 2 | 1 2 1 Gunslinging . | . . . Exploded . | . . . Melee . | . . . Uniques/NPCs Destroyed . | . . . Combat | -11 -10 -10 -------- Run | Jun Mat Sub Damage Taken 1140 | . 434 706 Core 251 | . 77 174 Absorbed by Shields . | . . . Redirected to Shielding 25 | . . 25 Core Remaining (%) 100 | 100 . . Volleys Fired 82 | 3 59 20 Largest 2 | 2 2 2 Hottest 100 | 100 100 70 Shots Fired 157 | 6 112 39 Gun 156 | 6 111 39 Cannon . | . . . Launcher 1 | . 1 . Special . | . . . Kinetic 63 | . 44 19 Thermal 93 | 6 67 20 Explosive 1 | . 1 . Electromagnetic . | . . . Robot Hit Streak 19 | 2 13 19 Robot Miss Streak 4 | 2 4 1 Penetration Max . | . . . Secondary Targets 1 | . . 1 Max Gunslinging Chain 1 | . . 1 Shots Hit Robots 112 | 3 74 35 Core Hits 43 | 3 32 8 Critical Kills 1 | . . 1 Critical Parts Destroyed 1 | . 1 . Critical Strikes 6 | . 4 2 Burn 4 | . 3 1 Destroy 2 | . 1 1 Melee Attacks 24 | . . 24 Impact . | . . . Slashing 24 | . . 24 Piercing . | . . . Sneak Attacks 1 | . . 1 Combat Hostiles . | . . . Follow-up Attacks . | . . . Damage Inflicted 1478 | 37 993 448 Guns 1410 | 37 993 380 Cannons . | . . . Explosions . | . . . Melee 68 | . . 68 Ramming . | . . . Kinetic 587 | . 410 177 Thermal 823 | 37 583 203 Explosive . | . . . Electromagnetic . | . . . Impact . | . . . Slashing 68 | . . 68 Piercing . | . . . Highest Corruption . | . . . Average Corruption . | . . . Corruption Purged . | . . . Corruption Blocked . | . . . Overload Shots . | . . . Overflow Damage 4 | . . 4 Projectiles . | . . . Explosions . | . . . Melee 4 | . . 4 Knockbacks . | . . . Impact . | . . . Kinetic . | . . . Secondary . | . . . Self-Inflicted Damage . | . . . Shots . | . . . Rammed . | . . . Targets Rammed . | . . . Kicked . | . . . Crushed . | . . . Highest Temperature 300 | 78 300 . Average Temperature 82 | 33 85 . Received Heat Transfer 276 | . 180 96 Effects 2 | . 2 . Interference 2 | . 2 . Siege Activations . | . . . Robots Corrupted . | . . . Combat Hostiles . | . . . Parts Fried . | . . . Impact Corruptions . | . . . Robots Melted . | . . . Combat Hostiles . | . . . Parts Melted 4 | . 3 1 Heat Transferred 2701 | 111 1924 666 Parts Sabotaged . | . . . Parts Stolen . | . . . Parts Stripped . | . . . Power Chain Reactions . | . . . Missiles Intercepted . | . . . Alert | -11 -10 -10 ------- Run | Jun Mat Sub Peak Influence 281 | 10 281 . Initial 6 | . 6 . Average 132 | 7 137 . Maximum Alert Level 1 | . 1 . Low Security (%) 86 | 100 85 . Level 1 13 | . 14 . Level 2 . | . . . Level 3 . | . . . Level 4 . | . . . Level 5 . | . . . High Security . | . . . Max Security . | . . . Squads Dispatched 2 | . 2 . Investigation . | . . . Extermination . | . . . Reinforcement 2 | . 2 . Assault . | . . . Garrison . | . . . Intercept . | . . . Searches Triggered . | . . . Construction Impeded . | . . . Haulers Reinforced . | . . . Active Scanning Responses . | . . . Cargo Convoy Interrupts . | . . . Stealth | -11 -10 -10 --------- Run | Jun Mat Sub Distress Signals 4 | . 4 . Communications Jammed . | . . . Distress Signals . | . . . Times Spotted 28 | . 22 6 Peak Tracking Total 4 | . 4 2 Tactical Retreats . | . . . Traps | -11 -10 -10 ------- Run | Jun Mat Sub Traps Triggered 1 | . . 1 Indirectly . | . . . Trap Hack Attempts . | . . . Triggered . | . . . Disarmed . | . . . Reprogrammed . | . . . Reused . | . . . Traps Extracted . | . . . Installed . | . . . Triggered . | . . . Machines | -11 -10 -10 ---------- Run | Jun Mat Sub Machines Disabled 1 | . 1 . Max in Single Turn 1 | . 1 . Machines Repaired . | . . . Machines Sabotaged . | . . . Overloaded Fab Kills . | . . . Hacking | -11 -10 -10 --------- Run | Jun Mat Sub Machines Accessed 7 | . 6 1 Terminals 5 | . 5 . Fabricators . | . . . Repair Stations . | . . . Recycling Units 1 | . 1 . Scanalyzers . | . . . Garrison Access . | . . . Total Hacks 21 | . 19 2 Successful 8 | . 6 2 Failed 13 | . 13 . Catastrophic 3 | . 3 . Database Lockouts . | . . . Manual 13 | . 13 . Terminals 14 | . 14 . Fabricators . | . . . Repair Stations . | . . . Recycling Units 5 | . 5 . Scanalyzers . | . . . Garrison Access . | . . . Terminal Hacks 6 | . 4 2 Record 4 | . 2 2 Robot Analysis 2 | . 2 . Fabricator Hacks . | . . . Repair Station Hacks . | . . . Recycling Unit Hacks 1 | . 1 . Retrieve Components 1 | . 1 . Scanalyzer . | . . . Garrison Access Hacks . | . . . Unauthorized Hacks 1 | . 1 . Terminals . | . . . Fabricators . | . . . Repair Stations . | . . . Recycling Units 1 | . 1 . Reject 1 | . 1 . Scanalyzers . | . . . Garrison Access . | . . . Data Cores Recovered . | . . . Used . | . . . Hacking Detections 6 | . 6 . Full Trace Events . | . . . Feedback Events . | . . . Feedback Blocked . | . . . Robot Schematics Acquired . | . . . Robots Built . | . . . Authchips . | . . . Time . | . . . Total Robot Build Rating . | . . . Part Schematics Acquired . | . . . Parts Built . | . . . Authchips . | . . . Time . | . . . Total Part Build Rating . | . . . Parts Repaired . | . . . Time . | . . . Parts Recycled . | . . . Recycled Matter . | . . . Retrieved Matter . | . . . Retrieved Components 5 | . 5 . Parts Scanalyzed . | . . . Part Schematics Acquired . | . . . Parts Damaged . | . . . Bothacking | -11 -10 -10 ------------ Run | Jun Mat Sub Used RIF Installer . | . . . Robots Hacked . | . . . Non-combat . | . . . Combat . | . . . Robot Hacks Applied . | . . . Relay Couplers Released . | . . . Fabnet Peak Effective % . | . . . Robots Rewired . | . . . Allies Hacked . | . . . Hacks Repelled . | . . . Allies | -11 -10 -10 -------- Run | Jun Mat Sub Total Allies . | . . . Largest Group . | . . . Highest-Rated Group . | . . . Highest-Rated Ally . | . . . Total Orders . | . . . Ally Attacks . | . . . Total Damage . | . . . Kills . | . . . Allies Corrupted . | . . . Allies Melted . | . . . Intel | -11 -10 -10 ------- Run | Jun Mat Sub Robot Analysis Total 2 | . 2 . Derelict Logs Recovered 2 | . . 2 Drone Launches . | . . . Drone Recoveries . | . . . Exploration | -11 -10 -10 ------------- Run | Jun Mat Sub Turns Passed 2044 | 35 920 1089 Spaces Moved 1015 | 21 423 571 Core . | . . . Treads 986 | . 415 571 Legs 29 | 21 8 . Wheels . | . . . Hover . | . . . Flight . | . . . Fastest Speed 120 | 120 120 160 Average Speed 158 | 120 159 160 Slowest Speed 160 | 120 160 160 Overloaded Moves . | . . . Propulsion Burnouts . | . . . Robots Hopped . | . . . Cave-ins Triggered . | . . . Exploration Rate (%) 46 | 3 87 49 Regions Visited 2 Branch Regions 1 Pre-discovered Areas 1 | . . 1 Known Exits Taken . | . . . Unknown Exits Taken 2 | 1 1 . Scrap Searched 8 | . . 8 Spaces Dug . | . . . Terrain Destroyed 8 | . 8 . Melee . | . . . Projectile . | . . . AOE 8 | . 8 . Terrain Rammed . | . . . Walls Destroyed . | . . . Machines Disabled . | . . . Actions | -11 -10 -10 --------- Run | Jun Mat Sub Total 1235 | 24 560 651 Wait 58 | . 43 15 Move 1013 | 20 422 571 Hop . | . . . Pick Up 13 | . 12 1 Fast Attach 2 | 1 1 . Attach 8 | . 6 2 Detach 1 | . 1 . Swap 24 | . 6 18 Drop 10 | . 10 . Fire 82 | 3 59 20 Melee 24 | . . 24 Ram . | . . . Kick . | . . . Crush . | . . . Escape Stasis . | . . . Rewire . | . . . Trap . | . . . Miscellaneous . | . . . Route ------- -11/Junkyard -10/Materials (discovered 5 exits: [*Mat x2] / [*Min x2] / *Sub) -10/Subcaves (discovered 1 exit: [*Mat]) History --------- Turn | Location | Event 4 | -11/Junkyard | Discovered new exit (range 3) 36 | -11/Junkyard | Entered Materials 202 | -10/Materials | Discovered new exit (range 13) 322 | -10/Materials | Build established: Mutant 511 | -10/Materials | Discovered new exit (range 11) 600 | -10/Materials | Discovered new exit (range 13) 601 | -10/Materials | Discovered new exit (range 14) 737 | -10/Materials | Discovered new exit (range 16) 956 | -10/Materials | Entered Subcaves 1226 | -10/Subcaves | Discovered new exit (range 9) 1312 | -10/Subcaves | Shifting Twisted Machinery released Sub. Optics 1363 | -10/Subcaves | Learned Materials garrison access intel 1399 | -10/Subcaves | Shifting Twisted Machinery released Battle Rifle 1428 | -10/Subcaves | Shifting Twisted Machinery released Battle Rifle 1436 | -10/Subcaves | Visited Clippyterm 1478 | -10/Subcaves | Learned location of Storage (-9) 1560 | -10/Subcaves | Core integrity fell below 50% 1740 | -10/Subcaves | A swath of the cavern ceiling suddenly collapsed 2042 | -10/Subcaves | Core integrity fell below 20% 2045 | -10/Subcaves | Destroyed by HT-C7N(R) with Subdweller Shrapnel Launcher Last Messages --------------- 01701_ Found Scrap Shield. 01701_ Found Flamer. 01701_ Found 29 Matter. 01702_ Searching scrap... 01702_ Found Mak. Laser. 01702_ Found Sub. Machine Gun. 01702_ Found 24 Matter. 01704_ Searching scrap... 01704_ Found Sub. Beam Cannon. 01704_ Found Riot Gun. 01704_ Found 19 Matter. 01706_ Searching scrap... 01706_ Found Sub. Power Source. 01706_ Found Scrap Shield. 01706_ Found 31 Matter. A swath of the cavern ceiling suddenly collapses. 01976_ 6U-VXK(u) tweaks Twisted Machinery. 01984_ 6U-VXK(u) builds Twisted Machinery. 01999_ 6U-VXK(u) tweaks Twisted Machinery. 02045_ Assault Rifle destroyed. Map ----- +----------------------------------------------------+ | ?????????????????##"" #""""" ###????????????? | | ?????????????????##"" """"""##????????????? | | #???????????????###"""""""" "##????????????? | | #???????????????## ##""#"" "##????????????? | | #???????????????#########"" ""##????????????? | | #??????????????########"""""####????????????? | | #???????????????????###" "####????????????? | | ?????????????????????###" ""###?????????????? | | ?????????????????????##"" " ##?????????????? | | ?????????????????????## ##?????????????? | | ?????????????????????## ###?????????????? | | ?????????????????????#### ####?????????????? | | ?????????????????????#### ####??????????????? | | ??????????????????????### ##???????????????? | | ?????????????????????### ##???????????????? | | ????????????????????##### ###???????????????? | | ????????????????####### ####??????????????? | | ????????????????###### ###??????????????? | | ????????????????##"& ##< ##??????????????? | | ????????????????## # ##??????????????? | | ?????????????????? ##<#R ##??????????????? | | ?????????????????? # ; ###??????????????? | | ??????????????????? # ##?????????????? | | ??????????????????#### ;###????????????? | | ??????????????????###; ###????????????? | | ?????????????????### @ ##????????????? | | ????????????????### ###????????????? | | ????????????????## ###????????????? | | ????????????????#### ; ; ###????????????? | | ????????????????#### ###; ##????????????? | | ??????????????????## ?### ##????????????? | | ??????????????????## ??## ###????????????? | | ?????????????????## ???# ###????????????? | | ?????????????????## ??## ###?????????????? | | ?????????????????# ??#######?????????????? | | ????????????????? ###???######??????????????? | | ???????????????? #??????????????????????????? | | ???????????????? #???????????????????????????? | | ?????????????????????????????????????????????? | | ?????????????????????????????????????????????? | | ?????????????????????????????????????????????? | | ?????????????????????????????????????????????? | | ?????????????????????????????????????????????? | | ?????????????????????????????????????????????? | | ?????????????????????????????????????????????? | | ?????????????????????????????????????????????? | | ?????????????????????????????????????????????? | | ?????????????????????????????????????????????? | | ?????????????????????????????????????????????? | | ?????????????????????????????????????????????? | +----------------------------------------------------+ Best States ------------- Heat Dissipation 25 Energy Generation 10 Energy Capacity 250 Matter Stores 300 Matter Capacity 300 Sight Range 16 Terrain Scan Density 10 Armor Coverage 150 Core Shielding 20 Evasion (%) 50 Recoil Reduction 2 Item Schematics ----------------- None Robot Schematics ------------------ None Fabricated ------------ Nothing Alien Tech Used ----------------- None Achievements -------------- None Challenges ------------ None Game ------ Seed BombardmentPhysicsMantle Manual? 0 Play Time 00:28:45 Cumulative 171.8 hours Start 2023.11.08 @ 08:41:55 End 2023.11.08 @ 09:15:44 Sessions 1 Manual Loads 0 Difficulty Rogue Special Mode None Game No. 108 Rogue 108 Adventurer 0 Explorer 0 Win Type - Total 4 Types 3/0/1/0/0/0/0/0/0 Lore% 51 Gallery% 53 Achievement% 50 Wizard Run 0 Options --------- ASCII 0 Keyboard 0 Movement Mouse Keybinds 0 Fullscreen 1 Font 18/SmallcapsGlow Map View 76x50 Tactical HUD 1 Map Filters NONE Filters NONE Steam 1 RUN: 473bd736-4285-4926-bc46-2b0f4658ee90